fUSD/lending_fUSD_20260217
["ID","MTS","AMOUNT","RATE_DAILY","PERIOD"]
[405812957,1771333838447,-150.99,7.365e-05,2]
[405812958,1771333838456,-9999.99,7.365e-05,2]
[405812959,1771333838466,-9999.99,7.365e-05,2]
[405812960,1771333838475,-349.65,7.365e-05,2]
[405812961,1771333838485,-9872.25848159,7.413e-05,2]
[405812962,1771333838494,-3061.16,7.425e-05,2]
[405812963,1771333838503,-3061.16,7.485e-05,2]
[405812964,1771333838512,-11261.15255038,7.513e-05,2]
[405812965,1771333838522,-3061.16,7.545e-05,2]
[405812966,1771333838531,-3061.16,7.605e-05,2]
[405812967,1771333838540,-12788.93602606,7.613e-05,2]
[405812968,1771333838550,-13205.6042467,7.713e-05,2]
[405812969,1771333838559,-250.0,7.771e-05,2]
[405812970,1771333838568,-16677.8394187,7.813e-05,2]
[405812971,1771333838578,-8192.07,7.844e-05,2]
[405812972,1771333838587,-1000.0,7.876e-05,2]
[405812973,1771333838596,-1000.0,7.876e-05,2]
[405812974,1771333838606,-16816.72882558,7.9e-05,2]
[405812975,1771333838615,-3358.663823,7.945e-05,2]
[405812976,1771333838625,-169.59292629,8e-05,2]
[405812977,1771333838635,-457.25346439,8e-05,2]
[405812978,1771333838644,-166.66,8.041e-05,2]
[405812979,1771333838654,-219.0,8.071e-05,2]
[405812980,1771333838663,-2351.0,8.071e-05,2]
[405812981,1771333838673,-6737.6189,8.078e-05,2]
[405812982,1771333838683,-912.16073,8.178e-05,2]
[405812983,1771333838693,-500.0,8.219e-05,2]
[405812984,1771333838702,-500.0,8.219e-05,2]
[405812985,1771333838711,-481.42021043,8.219e-05,2]
[405812986,1771333838721,-1249.146837,8.219e-05,2]
[405812987,1771333838731,-150.0,8.219e-05,2]
[405812988,1771333838741,-274.257356,8.219e-05,2]
[405812989,1771333838750,-398.514713,8.219e-05,2]
[405812990,1771333839048,-522.77207,8.219e-05,2]
[405812991,1771333839059,-647.029427,8.219e-05,2]
[405812992,1771333839069,-771.286784,8.219e-05,2]
[405812993,1771333839079,-895.544141,8.219e-05,2]
[405812994,1771333839089,-1019.801498,8.219e-05,2]
[405812995,1771333839099,-1144.058855,8.219e-05,2]
[405812996,1771333839109,-1268.316212,8.219e-05,2]
[405812997,1771333839118,-359.232122,8.219e-05,2]
[405812998,1771333839128,-500.0,8.219e-05,2]
[405812999,1771333839137,-165.3,8.219e-05,2]
[405813000,1771333839147,-166.66,8.306e-05,2]
[405813001,1771333839160,-823.0,8.334e-05,2]
[405813002,1771333839170,-324901.48,8.382e-05,2]
[405813003,1771333839179,-1100.0,8.386e-05,2]
[405813004,1771333839189,-248.14970002,8.386e-05,2]
[405813005,1771333839201,-209.0,8.413e-05,2]
[405813006,1771333839211,-500.0,8.493e-05,2]
[405813007,1771333839221,-408.0,8.499e-05,2]
[405813008,1771333839231,-632.4,8.5e-05,2]
[405813009,1771333839240,-1382.0,8.516e-05,2]
[405813010,1771333839250,-166.66,8.571e-05,2]
[405813011,1771333839259,-3434.5,8.761e-05,2]
[405813012,1771333839269,-250.0,8.815e-05,2]
[405813013,1771333839279,-166.66,8.837e-05,2]
[405813014,1771333839288,-3292.0,8.878e-05,2]
[405813015,1771333839298,-558.07,9.072e-05,2]
[405813016,1771333839307,-166.66,9.102e-05,2]
[405813017,1771333839317,-166.66,9.368e-05,2]
[405813018,1771333839326,-8864.476328,9.37e-05,2]
[405813019,1771333839336,-1561.433547,9.555e-05,2]
[405813020,1771333839346,-151.0,9.723e-05,4]
[405813021,1771333839355,-4609.0,9.766e-05,2]
[405813022,1771333839366,-234.9,9.776e-05,2]
[405813023,1771333839375,-661.54240001,0.0001,2]
[405813024,1771333839385,-179.77307974,0.0001,2]
[405813025,1771333839395,-500.0,0.0001,2]
[405813026,1771333839404,-500.0,0.0001,2]
[405813027,1771333839414,-500.0,0.0001,2]
[405813028,1771333839423,-500.0,0.0001,2]
[405813029,1771333839432,-500.0,0.0001,2]
[405813030,1771333839442,-500.0,0.0001,2]
[405813031,1771333839452,-500.0,0.0001,2]
[405813032,1771333839461,-151.0,0.0001,2]
[405813033,1771333839471,-500.0,0.0001,2]
[405813034,1771333839480,-151.0,0.0001,2]
[405813035,1771333839490,-500.0,0.0001,2]
[405813036,1771333839499,-151.0,0.0001,2]
[405813037,1771333839509,-500.0,0.0001,2]
[405813038,1771333839518,-500.0,0.0001,2]
[405813039,1771333839527,-200.0,0.0001,2]
[405813040,1771333839537,-500.0,0.0001,2]
[405813041,1771333839547,-500.0,0.0001,2]
[405813042,1771333839556,-500.0,0.0001,2]
[405813043,1771333839566,-500.0,0.0001,2]
[405813044,1771333839579,-500.0,0.0001,2]
[405813045,1771333839588,-500.0,0.0001,2]
[405813046,1771333839599,-500.0,0.0001,2]
[405813047,1771333839607,-500.0,0.0001,2]
[405813048,1771333839617,-500.0,0.0001,2]
[405813049,1771333839626,-500.0,0.0001,2]
[405813050,1771333839635,-500.0,0.0001,2]
[405813051,1771333839644,-151.0,0.0001,2]
[405813052,1771333839654,-151.0,0.0001,2]
[405813053,1771333839663,-151.0,0.0001,2]
[405813054,1771333839673,-151.0,0.0001,2]
[405813055,1771333839683,-151.0,0.0001,2]
[405813056,1771333839693,-151.0,0.0001,2]
[405813057,1771333839703,-151.0,0.0001,2]
[405813058,1771333839713,-151.0,0.0001,2]
[405813059,1771333839722,-200.0,0.0001,2]
[405813060,1771333839731,-151.0,0.0001,2]
[405813061,1771333839741,-151.0,0.0001,2]
[405813062,1771333839751,-151.0,0.0001,2]
[405813063,1771333839760,-151.0,0.0001,2]
[405813064,1771333839769,-151.0,0.0001,2]
[405813065,1771333839779,-151.0,0.0001,2]
[405813066,1771333839788,-151.0,0.0001,2]
[405813067,1771333839798,-151.0,0.0001,2]
[405813068,1771333839807,-151.0,0.0001,2]
[405813069,1771333839816,-151.0,0.0001,2]
[405813070,1771333839826,-151.0,0.0001,2]
[405813071,1771333839835,-151.0,0.0001,2]
[405813072,1771333839844,-151.0,0.0001,2]
[405813073,1771333839854,-151.0,0.0001,2]
[405813074,1771333839864,-151.0,0.0001,2]
[405813075,1771333839874,-151.0,0.0001,2]
[405813076,1771333839883,-151.0,0.0001,2]
[405813077,1771333839893,-151.0,0.0001,2]
[405813078,1771333839903,-151.0,0.0001,2]
[405813080,1771333839914,-151.0,0.0001,2]
[405813081,1771333839924,-151.0,0.0001,2]
[405813082,1771333839933,-151.0,0.0001,2]
[405813083,1771333839943,-151.0,0.0001,2]
[405813084,1771333839952,-274.35207863,0.0001,2]
[405813085,1771333839961,-665.75189293,0.0001,2]
[405813086,1771333839971,-665.75189293,0.0001,2]
[405813088,1771333839980,-1051.12862644,0.0001,2]
[405813089,1771333839989,-1062.34374874,0.00010199,3]
[405813090,1771333839999,-525.95039998,0.000103,2]
[405813091,1771333840009,-200.0,0.00010548,2]
[405813092,1771333840019,-200.0,0.00010548,2]
[405813093,1771333840028,-1291.353569,0.00010666,2]
[405813094,1771333840038,-6453.0,0.00010742,2]
[405813095,1771333840047,-6555.5752334,0.000109,2]
[405813096,1771333840057,-6555.57523335,0.000109,2]
[405813098,1771333840066,-6555.57523335,0.000109,2]
[405813100,1771333840075,-500.0,0.00010959,2]
[405813101,1771333840084,-226.88409827,0.00010959,2]
[405813102,1771333840094,-9419.8,0.00010959,2]
[405813103,1771333840104,-150.0,0.00010959,2]
[405813104,1771333840114,-1881.453815,0.00011073,2]
[405813105,1771333840123,-200.0,0.00011096,2]
[405813106,1771333840133,-5921.3128053,0.00011099,2]
[405813107,1771333840143,-5921.31280523,0.00011099,2]
[405813108,1771333840157,-5921.31280523,0.00011099,2]
[405813109,1771333840167,-5921.31280523,0.00011099,2]
[405813110,1771333840176,-5921.31280523,0.00011458,2]
[405813111,1771333840186,-6555.57523335,0.00011637,2]
[405813112,1771333840196,-200.0,0.00011644,2]
[405813113,1771333840206,-500.0,0.00011651,2]
[405813114,1771333840216,-211.0,0.00011651,2]
[405813115,1771333840227,-10637.371593,0.00011712,2]
[405813116,1771333840236,-3403.0,0.00011817,2]
[405813117,1771333840246,-1873.720256,0.00011944,2]
[405813118,1771333840255,-200.0,0.00012192,2]
[405813119,1771333840265,-151.0,0.00012288,4]
[405813120,1771333840275,-5921.31280523,0.00012327,2]
[405813121,1771333840284,-165.3,0.00012329,2]
[405813122,1771333840294,-500.0,0.00012354,2]
[405813123,1771333840304,-500.0,0.00012354,2]
[405813124,1771333840314,-500.0,0.00012354,2]
[405813125,1771333840323,-500.0,0.00012354,2]
[405813126,1771333840333,-211.0,0.00012354,2]
[405813127,1771333840342,-426.0,0.00012473,2]
[405813128,1771333840352,-200.0,0.0001274,2]
[405813129,1771333840361,-525.95039992,0.00012882,2]
[405813130,1771333840371,-500.0,0.00013176,2]
[405813131,1771333840380,-500.0,0.00013176,2]
[405813132,1771333840389,-326.0,0.00013176,2]
[405813133,1771333840401,-5921.31280523,0.00013197,2]
[405813134,1771333840411,-6555.57523335,0.00013203,2]
[405813135,1771333840420,-201.77822118,0.00013288,2]
[405813136,1771333840430,-284.0,0.00013295,2]
[405813137,1771333840439,-500.0,0.00013698,2]
[405813138,1771333840448,-500.0,0.00013698,2]
[405813139,1771333840457,-500.0,0.00013698,2]
[405813140,1771333840466,-500.0,0.00013698,2]
[405813141,1771333840475,-500.0,0.00013698,2]
[405813142,1771333840484,-500.0,0.00013698,2]
[405813143,1771333840493,-500.0,0.00013698,2]
[405813144,1771333840502,-500.0,0.00013698,2]
[405813145,1771333840511,-500.0,0.00013698,2]
[405813146,1771333840520,-500.0,0.00013698,2]
[405813147,1771333840529,-500.0,0.00013698,2]
[405813148,1771333840538,-500.0,0.00013698,2]
[405813149,1771333840546,-500.0,0.00013698,2]
[405813150,1771333840555,-500.0,0.00013698,2]
[405813151,1771333840564,-500.0,0.00013698,2]
[405813152,1771333840573,-500.0,0.00013698,2]
[405813153,1771333840582,-500.0,0.00013698,2]
[405813154,1771333840590,-503.77565291,0.00013698,2]
[405813155,1771333840600,-500.0,0.00013698,2]
[405813156,1771333840610,-500.0,0.00013698,2]
[405813157,1771333840619,-500.0,0.00013698,2]
[405813158,1771333840628,-551.5931465,0.00013698,2]
[405813159,1771333840637,-535.55684817,0.00013698,2]
[405813161,1771333840646,-500.0,0.00013698,2]
[405813163,1771333840655,-500.0,0.00013698,2]
[405813165,1771333840664,-500.0,0.00013698,2]
[405813167,1771333840674,-639.90682726,0.00013698,2]
[405813169,1771333840683,-500.0,0.00013698,2]
[405813171,1771333840693,-500.0,0.00013698,2]
[405813173,1771333840702,-500.0,0.00013698,2]
[405813175,1771333840711,-500.0,0.00013698,2]
[405813177,1771333840720,-500.0,0.00013698,2]
[405813179,1771333840729,-500.0,0.00013698,2]
[405813180,1771333840740,-500.0,0.00013698,2]
[405813181,1771333840749,-500.0,0.00013698,2]
[405813182,1771333840758,-500.0,0.00013698,2]
[405813183,1771333840768,-500.0,0.00013698,2]
[405813184,1771333840778,-391.46615766,0.00013698,2]
[405813185,1771333840787,-669.78,0.00013698,2]
[405813186,1771333840796,-669.78,0.00013698,2]
[405813187,1771333840806,-669.78,0.00013698,2]
[405813188,1771333840815,-669.78,0.00013698,2]
[405813189,1771333840824,-669.78,0.00013698,2]
[405813190,1771333840833,-669.78,0.00013698,2]
[405813191,1771333840842,-669.78,0.00013698,2]
[405813192,1771333840853,-669.78,0.00013698,2]
[405813193,1771333840862,-669.78,0.00013698,2]
[405813194,1771333840871,-669.78,0.00013698,2]
[405813195,1771333840880,-669.78,0.00013698,2]
[405813196,1771333840889,-669.78,0.00013698,2]
[405813197,1771333840899,-669.78,0.00013698,2]
[405813198,1771333840908,-669.78,0.00013698,2]
[405813199,1771333840918,-669.78,0.00013698,2]
[405813200,1771333840927,-349.69131006,0.00013698,2]
[405813201,1771333840937,-500.0,0.00013698,2]
[405813202,1771333840945,-500.0,0.00013698,2]
[405813203,1771333840955,-500.0,0.00013698,2]
[405813204,1771333840964,-500.0,0.00013698,2]
[405813205,1771333840974,-500.0,0.00013698,2]
[405813206,1771333840983,-500.0,0.00013698,2]
[405813207,1771333840992,-500.0,0.00013698,2]
[405813208,1771333841001,-500.0,0.00013698,2]
[405813209,1771333841011,-500.0,0.00013698,2]
[405813210,1771333841020,-500.0,0.00013698,2]
[405813211,1771333841029,-500.0,0.00013698,2]
[405813212,1771333841038,-500.0,0.00013698,2]
[405813213,1771333841047,-500.0,0.00013698,2]
[405813214,1771333841057,-500.0,0.00013698,2]
[405813215,1771333841066,-500.0,0.00013698,2]
[405813216,1771333841075,-500.0,0.00013698,2]
[405813217,1771333841085,-1147.19,0.00013698,2]
[405813218,1771333841094,-1147.19,0.00013698,2]
[405813219,1771333841104,-1147.19,0.00013698,2]
[405813220,1771333841113,-1147.19,0.00013698,2]
[405813221,1771333841122,-1147.19,0.00013698,2]
[405813222,1771333841132,-1147.19,0.00013698,2]
[405813223,1771333841142,-1147.19,0.00013698,2]
[405813224,1771333841152,-1147.19,0.00013698,2]
[405813225,1771333841164,-1147.19,0.00013698,2]
[405813226,1771333841174,-1147.19,0.00013698,2]
[405813227,1771333841183,-1147.19,0.00013698,2]
[405813228,1771333841192,-1147.19,0.00013698,2]
[405813229,1771333841208,-1147.19,0.00013698,2]
[405813230,1771333841224,-1147.19,0.00013698,2]
[405813231,1771333841239,-1147.19,0.00013698,2]
[405813232,1771333841251,-500.0,0.00013698,2]
[405813233,1771333841264,-500.0,0.00013698,2]
[405813234,1771333841277,-500.0,0.00013698,2]
[405813235,1771333841291,-500.0,0.00013698,2]
[405813236,1771333841305,-511.5660924,0.00013698,2]
[405813237,1771333841319,-500.0,0.00013698,2]
[405813238,1771333841331,-529.40507312,0.00013698,2]
[405813239,1771333841343,-456.05800986,0.00013698,2]
[405813240,1771333841354,-500.0,0.00013698,2]
[405813241,1771333841368,-500.0,0.00013698,2]
[405813242,1771333841382,-500.0,0.00013698,2]
[405813243,1771333841396,-500.0,0.00013698,2]
[405813244,1771333841410,-500.0,0.00013698,2]
[405813245,1771333841424,-500.0,0.00013698,2]
[405813246,1771333841437,-500.0,0.00013698,2]
[405813247,1771333841452,-500.0,0.00013698,2]
[405813248,1771333841465,-500.0,0.00013698,2]
[405813249,1771333841478,-500.0,0.00013698,2]
[405813250,1771333841492,-500.0,0.00013698,2]
[405813251,1771333841504,-465.55674509,0.00013698,2]
[405813252,1771333841517,-829.16,0.00013698,2]
[405813253,1771333841532,-829.16,0.00013698,2]
[405813254,1771333841543,-829.16,0.00013698,2]
[405813255,1771333841555,-829.16,0.00013698,2]
[405813256,1771333841567,-829.16,0.00013698,2]
[405813257,1771333841577,-500.0,0.00013698,2]
[405813258,1771333841589,-500.0,0.00013698,2]
[405813259,1771333841604,-500.0,0.00013698,2]
[405813260,1771333841619,-500.0,0.00013698,2]
[405813261,1771333841629,-500.0,0.00013698,2]
[405813262,1771333841639,-500.0,0.00013698,2]
[405813263,1771333841651,-500.0,0.00013698,2]
[405813264,1771333841665,-500.0,0.00013698,2]
[405813265,1771333841678,-500.0,0.00013698,2]
[405813266,1771333841689,-500.0,0.00013698,2]
[405813267,1771333841701,-500.0,0.00013698,2]
[405813268,1771333841712,-500.0,0.00013698,2]
[405813269,1771333841723,-500.0,0.00013698,2]
[405813270,1771333841735,-500.0,0.00013698,2]
[405813271,1771333841747,-307.44205355,0.00013698,2]
[405813272,1771333841758,-500.0,0.00013698,2]
[405813273,1771333841770,-500.0,0.00013698,2]
[405813274,1771333841782,-500.0,0.00013698,2]
[405813275,1771333841793,-500.0,0.00013698,2]
[405813276,1771333841805,-500.0,0.00013698,2]
[405813277,1771333841822,-500.0,0.00013698,2]
[405813278,1771333841834,-500.0,0.00013698,2]
[405813279,1771333841845,-500.0,0.00013698,2]
[405813280,1771333841857,-500.0,0.00013698,2]
[405813281,1771333841868,-500.0,0.00013698,2]
[405813282,1771333841879,-500.0,0.00013698,2]
[405813283,1771333841891,-500.0,0.00013698,2]
[405813284,1771333841902,-500.0,0.00013698,2]
[405813285,1771333841914,-500.0,0.00013698,2]
[405813286,1771333841926,-500.0,0.00013698,2]
[405813287,1771333841938,-500.0,0.00013698,2]
[405813288,1771333841950,-500.0,0.00013698,2]
[405813289,1771333841961,-500.0,0.00013698,2]
[405813290,1771333841973,-500.0,0.00013698,2]
[405813291,1771333841985,-500.0,0.00013698,2]
[405813292,1771333841997,-500.0,0.00013698,2]
[405813293,1771333842009,-500.0,0.00013698,2]
[405813294,1771333842021,-500.0,0.00013698,2]
[405813295,1771333842033,-298.04694078,0.00013698,2]
[405813296,1771333842044,-508.20125622,0.00013698,2]
[405813297,1771333842056,-500.0,0.00013698,2]
[405813298,1771333842067,-500.0,0.00013698,2]
[405813299,1771333842080,-500.0,0.00013698,2]
[405813300,1771333842092,-500.0,0.00013698,2]
[405813301,1771333842104,-500.0,0.00013698,2]
[405813302,1771333842116,-500.0,0.00013698,2]
[405813303,1771333842127,-197.6651859,0.00013698,2]
[405813304,1771333842139,-500.0,0.00013698,2]
[405813305,1771333842150,-500.0,0.00013698,2]
[405813306,1771333842165,-500.0,0.00013698,2]
[405813307,1771333842177,-522.2154278,0.00013698,2]
[405813308,1771333842188,-200.0,0.00013699,2]
[405813309,1771333842201,-712.99,0.00013699,2]
[405813310,1771333842214,-702.05,0.000137,2]
[405813311,1771333842226,-702.05,0.000137,2]
[405813312,1771333842238,-510.58,0.000137,2]
[405813313,1771333842250,-510.58,0.000137,2]
[405813314,1771333842262,-510.58,0.000137,2]
[405813315,1771333842274,-510.58,0.000137,2]
[405813316,1771333842285,-510.58,0.000137,2]
[405813317,1771333842297,-510.58,0.000137,2]
[405813318,1771333842309,-510.58,0.000137,2]
[405813319,1771333842320,-510.58,0.000137,2]
[405813320,1771333842332,-510.58,0.000137,2]
[405813321,1771333842343,-510.58,0.000137,2]
[405813322,1771333842355,-510.6,0.000137,2]
[405813323,1771333842367,-500.0,0.00013998,2]
[405813324,1771333842378,-384.0,0.00013998,2]
[405813325,1771333842389,-551.38570251,0.00014,2]
[405813326,1771333842401,-500.0,0.00014,2]
[405813327,1771333842413,-739.70489203,0.00014,2]
[405813328,1771333842424,-669.72717537,0.00014,2]
[405813329,1771333842436,-8326.4100907,0.00014019,2]
[405813330,1771333842448,-5921.31280523,0.00014067,2]
[405813331,1771333842460,-4304.511897,0.00014221,7]
[405813332,1771333842471,-151.0,0.00014634,2]
[405813333,1771333842483,-151.0,0.00014634,2]
[405813334,1771333842494,-77420.0,0.000147,2]
[405813335,1771333842507,-6271.512718,0.00014765,7]
[405813336,1771333842518,-6555.57523335,0.00014769,2]
[405813337,1771333842530,-151.0,0.00014853,4]
[405813338,1771333842542,-5921.31280523,0.00014937,2]
[405813339,1771333842554,-5081.21172264,0.00014944,2]
[405813340,1771333842566,-182.90138575,0.00015,5]
[405813341,1771333842577,-5530.0,0.000152,3]
[405813342,1771333842589,-160.0,0.00015248,2]
[405813343,1771333842601,-173.57638878,0.00015248,2]
[405813344,1771333842613,-724.57,0.00015373,2]
[405813345,1771333842624,-500.0,0.00015373,2]
[405813346,1771333842636,-500.0,0.00015373,2]
[405813347,1771333842647,-505.24249427,0.00015373,2]
[405813348,1771333842659,-669.78,0.00015373,2]
[405813349,1771333842671,-669.78,0.00015373,2]
[405813350,1771333842683,-669.78,0.00015373,2]
[405813351,1771333842695,-669.78,0.00015373,2]
[405813352,1771333842707,-669.78,0.00015373,2]
[405813353,1771333842719,-669.78,0.00015373,2]
[405813354,1771333842731,-669.78,0.00015373,2]
[405813355,1771333842743,-669.78,0.00015373,2]
[405813356,1771333842755,-669.85168694,0.00015373,2]
[405813357,1771333842766,-506.17760418,0.00015373,2]
[405813358,1771333842778,-1147.19,0.00015373,2]
[405813359,1771333842790,-1147.19,0.00015373,2]
[405813360,1771333842802,-1147.19,0.00015373,2]
[405813361,1771333842814,-1147.19,0.00015373,2]
[405813362,1771333842826,-1147.19,0.00015373,2]
[405813363,1771333842838,-1147.19,0.00015373,2]
[405813364,1771333842851,-1147.19,0.00015373,2]
[405813365,1771333842863,-1147.19,0.00015373,2]
[405813366,1771333842874,-1147.35508189,0.00015373,2]
[405813367,1771333842886,-1000.0,0.00015449,7]
[405813368,1771333842897,-525.95039992,0.00015463,2]
[405813369,1771333842909,-234.9,0.00015515,2]
[405813370,1771333842920,-306.51422453,0.00015573,2]
[405813371,1771333842932,-8864.476328,0.00015616,7]
[405813372,1771333842944,-5530.0,0.000157,5]
[405813373,1771333842955,-5921.31280523,0.00015807,2]
[405813374,1771333842967,-484.11558281,0.00015827,2]
[405813375,1771333842978,-776.66,0.00015887,2]
[405813376,1771333842990,-500.0,0.00015907,2]
[405813379,1771333843001,-500.0,0.00015907,2]
[405813381,1771333843012,-500.0,0.00015907,2]
[405813383,1771333843023,-500.0,0.00015907,2]
[405813385,1771333843035,-162.380719,0.00015907,2]
[405813386,1771333843046,-500.0,0.00015907,2]
[405813387,1771333843057,-500.0,0.00015907,2]
[405813388,1771333843070,-500.0,0.00015907,2]
[405813392,1771333843082,-500.0,0.00015907,2]
[405813395,1771333843093,-500.0,0.00015907,2]
[405813398,1771333843106,-500.0,0.00015907,2]
[405813400,1771333843118,-1428.38747117,0.00015907,2]
[405813401,1771333843130,-250.0,0.00015907,2]
[405813402,1771333843142,-209.40437684,0.00015907,2]
[405813403,1771333843156,-3000.0,0.00015907,2]
[405813405,1771333843168,-250.0,0.00015907,2]
[405813406,1771333843180,-9552.16786547,0.00015907,2]
[405813407,1771333843191,-160.0,0.00015907,2]
[405813408,1771333843209,-500.0,0.00015907,2]
[405813409,1771333843221,-250.0,0.00015907,2]
[405813410,1771333843233,-3000.0,0.00015907,2]
[405813411,1771333843245,-250.0,0.00015907,2]
[405813412,1771333843256,-209.40437684,0.00015907,2]
[405813413,1771333843267,-500.0,0.00015907,2]
[405813414,1771333843278,-253.83621088,0.00015907,2]
[405813415,1771333843290,-250.0,0.00015907,2]
[405813416,1771333843301,-3000.0,0.00015907,2]
[405813417,1771333843312,-500.0,0.00015907,2]
[405813418,1771333843324,-250.0,0.00015907,2]
[405813419,1771333843336,-3000.0,0.00015907,2]
[405813420,1771333843347,-500.0,0.00015907,2]
[405813421,1771333843359,-250.0,0.00015907,2]
[405813422,1771333843371,-500.0,0.00015907,2]
[405813423,1771333843382,-302.70619241,0.00015907,2]
[405813424,1771333843393,-500.0,0.00015907,2]
[405813425,1771333843405,-500.0,0.00015907,2]
[405813426,1771333843416,-500.0,0.00015907,2]
[405813427,1771333843427,-500.0,0.00015907,2]
[405813428,1771333843439,-500.0,0.00015907,2]
[405813429,1771333843450,-578.20924308,0.00015907,2]
[405813430,1771333843461,-3000.0,0.00015907,2]
[405813431,1771333843472,-3000.0,0.00015907,2]
[405813432,1771333843483,-721.12765535,0.00015907,2]
[405813433,1771333843494,-151.12957794,0.00015907,2]
[405813434,1771333843505,-3000.0,0.00015907,2]
[405813435,1771333843516,-3099.28707761,0.00015907,2]
[405813436,1771333843527,-200.0,0.00015907,2]
[405813437,1771333843538,-151.0,0.00015907,2]
[405813438,1771333843549,-3000.0,0.00015907,2]
[405813439,1771333843561,-3000.0,0.00015907,2]
[405813440,1771333843572,-1070.81608438,0.00015907,2]
[405813441,1771333843583,-250.0,0.00015907,2]
[405813442,1771333843594,-250.0,0.00015907,2]
[405813443,1771333843604,-250.0,0.00015907,2]
[405813444,1771333843615,-250.0,0.00015907,2]
[405813445,1771333843627,-250.0,0.00015907,2]
[405813446,1771333843638,-250.0,0.00015907,2]
[405813447,1771333843650,-250.0,0.00015907,2]
[405813448,1771333843661,-250.0,0.00015907,2]
[405813449,1771333843672,-250.0,0.00015907,2]
[405813450,1771333843683,-174.61919141,0.00015907,2]
[405813451,1771333843694,-250.0,0.00015907,2]
[405813452,1771333843705,-250.0,0.00015907,2]
[405813453,1771333843716,-299.40346672,0.00015907,2]
[405813454,1771333843728,-250.0,0.00015907,2]
[405813455,1771333843739,-250.0,0.00015907,2]
[405813456,1771333843750,-250.0,0.00015907,2]
[405813457,1771333843761,-250.0,0.00015907,2]
[405813458,1771333843772,-250.0,0.00015907,2]
[405813459,1771333843783,-693.3919763,0.00015907,2]
[405813460,1771333843794,-250.0,0.00015907,2]
[405813461,1771333843805,-250.0,0.00015907,2]
[405813462,1771333843816,-250.0,0.00015907,2]
[405813463,1771333843827,-250.0,0.00015907,2]
[405813464,1771333843838,-743.50770149,0.00015907,2]
[405813465,1771333843849,-250.0,0.00015907,2]
[405813466,1771333843860,-250.0,0.00015907,2]
[405813467,1771333843872,-250.0,0.00015907,2]
[405813468,1771333843883,-250.0,0.00015907,2]
[405813469,1771333843893,-250.0,0.00015907,2]
[405813471,1771333843904,-250.0,0.00015907,2]
[405813474,1771333843915,-1000.0,0.00015907,2]
[405813481,1771333844337,-250.0,0.00015907,2]
[405813482,1771333844365,-250.0,0.00015907,2]
[405813483,1771333844375,-1000.0,0.00015907,2]
[405813484,1771333844384,-250.0,0.00015907,2]
[405813485,1771333844394,-526.36214318,0.00015907,2]
[405813486,1771333844403,-250.0,0.00015907,2]
[405813487,1771333844412,-291.48891739,0.00015907,2]
[405813488,1771333844422,-250.0,0.00015907,2]
[405813489,1771333844431,-250.0,0.00015907,2]
[405813490,1771333844440,-250.0,0.00015907,2]
[405813491,1771333844450,-279.55615727,0.00015907,2]
[405813492,1771333844459,-151.0,0.00015907,2]
[405813493,1771333844469,-250.0,0.00015907,2]